bitfinex/quotes_BTCUSD_20250529
["timestamp","ask_amount","ask_price","bid_price","bid_amount"]
[1748512515406,0.33558095,108520.0,108510.0,0.51487437]
[1748512515829,0.33558095,108520.0,108510.0,0.51487415]
[1748512516854,0.33558095,108520.0,108510.0,0.51487429]
[1748512517362,0.33558095,108520.0,108510.0,0.51487473]
[1748512517636,0.33558095,108520.0,108510.0,0.50843427]
[1748512517869,0.36322995,108520.0,108510.0,0.51487476]
[1748512518516,0.36322995,108520.0,108510.0,0.50843427]
[1748512518721,0.36322995,108520.0,108510.0,0.51487442]
[1748512518944,0.36322995,108520.0,108510.0,0.51487428]
[1748512519191,0.36322995,108520.0,108510.0,0.50843427]
[1748512521007,0.36322995,108520.0,108510.0,0.51487419]
[1748512521412,0.36322995,108520.0,108510.0,0.50843427]
[1748512521844,0.36322995,108520.0,108510.0,0.51487419]
[1748512522056,0.34792995,108520.0,108510.0,0.50843427]
[1748512522273,0.34792995,108520.0,108510.0,0.51487419]
[1748512522472,0.34792995,108520.0,108510.0,0.51487422]
[1748512522680,0.34792995,108520.0,108510.0,0.50843427]
[1748512522903,0.34792995,108520.0,108510.0,0.51487422]
[1748512523133,0.212727,108520.0,108510.0,0.83832488]
[1748512523549,0.212727,108520.0,108510.0,0.84476396]
[1748512523764,0.212727,108520.0,108510.0,0.84476406]
[1748512523984,0.212727,108520.0,108510.0,0.84476344]
[1748512524196,0.212727,108520.0,108510.0,0.83832488]
[1748512526007,0.212727,108520.0,108510.0,0.84476333]
[1748512526215,0.212727,108520.0,108510.0,0.83832488]
[1748512526432,0.212727,108520.0,108510.0,0.84476333]
[1748512527083,0.212727,108520.0,108510.0,0.83832488]
[1748512527937,0.212727,108520.0,108510.0,0.84476333]
[1748512528136,0.212727,108520.0,108510.0,0.83832488]
[1748512531950,0.212727,108520.0,108510.0,0.84476892]
[1748512532184,0.212727,108520.0,108510.0,0.83832488]
[1748512532395,0.212727,108520.0,108510.0,0.84476892]
[1748512532613,0.212727,108520.0,108510.0,0.83832488]
[1748512532823,0.212727,108520.0,108510.0,0.84476892]
[1748512533284,0.212727,108520.0,108510.0,0.84476938]
[1748512533520,0.212727,108520.0,108510.0,0.83832488]
[1748512534195,0.212727,108520.0,108510.0,0.53933427]
[1748512534644,0.212727,108520.0,108510.0,0.83832488]
[1748512536099,0.212727,108520.0,108510.0,1.12637413]
[1748512536320,0.212727,108520.0,108510.0,1.11992488]
[1748512536568,0.212727,108520.0,108510.0,0.82093427]
[1748512537040,0.212727,108520.0,108510.0,0.81730819]
[1748512537989,0.212727,108520.0,108510.0,1.15331511]
[1748512540274,0.212727,108520.0,108510.0,1.22373511]
[1748512542238,0.212727,108520.0,108510.0,0.94217511]
[1748512543365,0.212727,108520.0,108510.0,0.60616819]
[1748512543582,0.212727,108520.0,108510.0,0.85581511]
[1748512543789,0.212727,108520.0,108510.0,0.94217511]
[1748512545079,0.212727,108520.0,108510.0,0.59116819]
[1748512545308,0.31968095,108520.0,108510.0,0.50480819]
[1748512545529,0.30378095,108520.0,108510.0,0.50480819]
[1748512548271,0.30378095,108520.0,108510.0,0.10480819]
[1748512548812,0.30378095,108520.0,108510.0,0.50480819]
[1748512549030,0.30378095,108520.0,108510.0,0.51126883]
[1748512549217,0.30378095,108520.0,108510.0,0.50480819]
[1748512550670,0.30378095,108520.0,108510.0,0.51126904]
[1748512550880,0.30378095,108520.0,108510.0,0.50480819]
[1748512551116,0.30378095,108520.0,108510.0,0.51126903]
[1748512551337,0.30378095,108520.0,108510.0,0.50480819]
[1748512551967,0.30378095,108520.0,108510.0,0.51127117]
[1748512552174,0.30378095,108520.0,108510.0,0.50480819]
[1748512552852,0.30378095,108520.0,108510.0,0.51127085]
[1748512553112,0.30378095,108520.0,108510.0,0.50480819]
[1748512553248,0.30378095,108520.0,108510.0,0.51127061]
[1748512553450,0.30378095,108520.0,108510.0,0.50480819]
[1748512554512,0.30378095,108520.0,108510.0,0.51126994]
[1748512554731,0.30378095,108520.0,108510.0,0.50480819]
[1748512555058,0.30378095,108520.0,108510.0,0.51126993]
[1748512555883,0.30378095,108520.0,108510.0,0.51773056]
[1748512556088,0.30378095,108520.0,108510.0,0.51126993]
[1748512556493,0.30378095,108520.0,108510.0,0.51773025]
[1748512556764,0.30378095,108520.0,108510.0,0.51126993]
[1748512557304,0.30378095,108520.0,108510.0,0.51773024]
[1748512557728,0.30378095,108520.0,108510.0,0.51126993]
[1748512558233,0.63978787,108520.0,108510.0,0.11773031]
[1748512558448,0.30378095,108520.0,108510.0,0.11126993]
[1748512558690,0.30378095,108520.0,108510.0,0.51126993]
[1748512559336,0.30378095,108520.0,108510.0,0.51773044]
[1748512559544,0.30378095,108520.0,108510.0,0.51126993]
[1748512559760,0.30378095,108520.0,108510.0,0.51773075]
[1748512559976,0.30378095,108520.0,108510.0,0.51126993]
[1748512560613,0.30378095,108520.0,108510.0,0.51773082]
[1748512560819,0.30378095,108520.0,108510.0,0.51126993]
[1748512561002,0.30378095,108520.0,108510.0,0.51773319]
[1748512561271,0.30378095,108520.0,108510.0,0.51126993]
[1748512561693,0.30378095,108520.0,108510.0,0.11126993]
[1748512562109,0.30378095,108520.0,108510.0,0.1177336]
[1748512562316,0.64378095,108520.0,108510.0,0.51126993]
[1748512562555,0.64378095,108520.0,108510.0,0.51773347]
[1748512562777,0.64378095,108520.0,108510.0,0.51126993]
[1748512563437,0.64378095,108520.0,108510.0,0.52756993]
[1748512564104,0.64378095,108520.0,108510.0,0.53402816]
[1748512564937,0.64378095,108520.0,108510.0,0.53402815]
[1748512565119,0.64378095,108520.0,108510.0,0.12756993]
[1748512565816,0.64378095,108520.0,108510.0,0.52756993]
[1748512566473,0.64378095,108520.0,108510.0,0.51126993]
[1748512567344,0.64378095,108520.0,108510.0,0.51772831]
[1748512567566,0.64378095,108520.0,108510.0,0.51126993]
[1748512568707,0.64378095,108520.0,108510.0,0.11126993]
[1748512569187,0.64378095,108520.0,108510.0,0.52756993]
[1748512569402,0.64378095,108520.0,108510.0,0.87967685]
[1748512569609,0.30378095,108520.0,108510.0,0.87967685]
[1748512569832,0.30378095,108520.0,108510.0,0.88613925]
[1748512570165,0.30378095,108520.0,108510.0,0.87967685]
[1748512570776,0.30378095,108520.0,108510.0,0.88613921]
[1748512571673,0.30378095,108520.0,108510.0,0.87967685]
[1748512571886,0.30378095,108520.0,108510.0,0.88614059]
[1748512572109,0.30378095,108520.0,108510.0,0.88614058]
[1748512572766,0.30378095,108520.0,108510.0,0.88614146]
[1748512573206,0.30378095,108520.0,108510.0,0.88614364]
[1748512573421,0.30378095,108520.0,108510.0,0.88614371]
[1748512573640,0.30378095,108520.0,108510.0,0.5501376]
[1748512573853,0.30378095,108520.0,108510.0,0.54366993]
[1748512574324,0.30378095,108520.0,108510.0,0.55013764]
[1748512574549,0.30378095,108520.0,108510.0,0.54366993]
[1748512574994,0.30378095,108520.0,108510.0,0.55013763]
[1748512575681,0.30378095,108520.0,108510.0,0.54366993]
[1748512575896,0.30378095,108520.0,108510.0,0.87967685]
[1748512576089,0.30378095,108520.0,108510.0,0.55013747]
[1748512576350,0.30378095,108520.0,108510.0,0.87967685]
[1748512577019,0.212727,108520.0,108510.0,1.07199493]
[1748512577246,0.20351254,108520.0,108510.0,0.88768013]
[1748512578242,0.20351254,108520.0,108510.0,0.54366993]
[1748512578898,0.20351254,108520.0,108510.0,0.55013807]
[1748512579346,0.20351254,108520.0,108510.0,0.88614436]
[1748512579567,0.20351254,108520.0,108510.0,0.87967685]
[1748512579821,0.20351254,108520.0,108510.0,0.88614436]
[1748512580479,0.20351254,108520.0,108510.0,0.87967685]
[1748512580701,0.20351254,108520.0,108510.0,0.88614417]
[1748512581660,0.20351254,108520.0,108510.0,0.88614414]
[1748512581906,0.20351254,108520.0,108510.0,0.87967685]
[1748512582329,0.20351254,108520.0,108510.0,0.88614413]
[1748512582549,0.20351254,108520.0,108510.0,0.87967685]
[1748512582999,0.20351254,108520.0,108510.0,0.88614413]
[1748512583216,0.20351254,108520.0,108510.0,0.87967685]
[1748512583446,0.20351254,108520.0,108510.0,0.54366993]
[1748512584360,0.20351254,108520.0,108510.0,0.55013973]
[1748512584588,0.20351254,108520.0,108510.0,0.54366993]
[1748512584808,0.20351254,108520.0,108510.0,0.55013981]
[1748512585021,0.20351254,108520.0,108510.0,0.54366993]
[1748512585239,0.20351254,108520.0,108510.0,0.55013981]
[1748512586372,0.20351254,108520.0,108510.0,0.54366993]
[1748512586818,0.20351254,108520.0,108510.0,0.55014]
[1748512587065,0.20351254,108520.0,108510.0,0.54366993]
[1748512587299,0.20351254,108520.0,108510.0,0.55014]
[1748512588822,0.20351254,108520.0,108510.0,0.54366993]
[1748512589064,0.20351254,108520.0,108510.0,0.55014017]
[1748512590627,0.20351254,108520.0,108510.0,0.55014031]
[1748512590852,0.20351254,108520.0,108510.0,0.54366993]
[1748512591088,0.20351254,108520.0,108510.0,0.55014031]
[1748512591954,0.20351254,108520.0,108510.0,0.54677982]
[1748512592167,0.20351254,108520.0,108510.0,0.54030932]
[1748512595166,0.20351254,108520.0,108510.0,0.52420932]
[1748512595397,0.63057341,108520.0,108510.0,0.50790932]
[1748512597463,0.91205341,108520.0,108510.0,0.50790932]
[1748512598349,0.91205341,108520.0,108510.0,0.10790932]
[1748512598787,0.91205341,108520.0,108510.0,0.50790932]
[1748512601020,0.57604649,108520.0,108510.0,0.50790932]
[1748512601253,0.91205341,108520.0,108510.0,0.50790932]
[1748512603491,1.25205341,108520.0,108510.0,0.50790932]
[1748512604375,1.25205341,108520.0,108510.0,0.52440932]
[1748512604601,1.25205341,108520.0,108510.0,0.12440932]
[1748512604817,1.25205341,108520.0,108510.0,0.13087908]
[1748512605038,1.25205341,108520.0,108510.0,0.52440932]
[1748512605263,1.25205341,108520.0,108510.0,0.53087908]
[1748512605487,1.25205341,108520.0,108510.0,0.52440932]
[1748512605922,0.57604649,108520.0,108510.0,0.53087908]
[1748512606140,0.57604649,108520.0,108510.0,0.52440932]
[1748512606588,0.57604649,108520.0,108510.0,0.53087908]
[1748512607019,0.57604649,108520.0,108510.0,0.53087898]
[1748512608149,0.57604649,108520.0,108510.0,0.12440932]
[1748512608366,0.57604649,108520.0,108510.0,0.13087898]
[1748512608620,0.57604649,108520.0,108510.0,0.53087898]
[1748512608830,0.57604649,108520.0,108510.0,0.53087893]
[1748512609050,0.57604649,108520.0,108510.0,0.53087891]
[1748512609503,0.57604649,108520.0,108510.0,0.53087893]
[1748512610600,0.57604649,108520.0,108510.0,0.53087896]
[1748512610805,0.57604649,108520.0,108510.0,0.53087906]
[1748512611012,0.57604649,108520.0,108510.0,0.52440932]
[1748512611233,0.57604649,108520.0,108510.0,0.53087906]
[1748512611440,0.57604649,108520.0,108510.0,0.5308792]
[1748512611661,0.57604649,108520.0,108510.0,0.1308792]
[1748512612090,0.57604649,108520.0,108510.0,0.53087928]
[1748512612760,0.57604649,108520.0,108510.0,0.52440932]
[1748512612976,0.57604649,108520.0,108510.0,0.53087934]
[1748512613625,0.57604649,108520.0,108510.0,0.52440932]
[1748512613845,0.57604649,108520.0,108510.0,0.53087934]
[1748512614716,0.57604649,108520.0,108510.0,0.53087941]
[1748512615183,0.57604649,108520.0,108510.0,0.13087941]
[1748512615619,0.57604649,108520.0,108510.0,0.53087941]
[1748512615838,0.57604649,108520.0,108510.0,0.53087947]
[1748512616943,0.57604649,108520.0,108510.0,0.53087968]
[1748512618041,0.57604649,108520.0,108510.0,0.52440932]
[1748512618260,0.57604649,108520.0,108510.0,0.53087975]
[1748512618687,0.57604649,108520.0,108510.0,0.53087982]
[1748512618901,0.57600649,108520.0,108510.0,0.54728002]
[1748512620011,0.57600649,108520.0,108510.0,0.5472801]
[1748512620234,0.57600649,108520.0,108510.0,0.54080932]
[1748512620459,0.57600649,108520.0,108510.0,0.54728036]
[1748512621250,0.29456649,108520.0,108510.0,0.54728036]
[1748512621688,0.57600649,108520.0,108510.0,0.54728036]
[1748512622127,0.57600649,108520.0,108510.0,0.54080932]
[1748512622349,0.57600649,108520.0,108510.0,0.5472808]
[1748512622531,0.57600649,108520.0,108510.0,0.54080932]
[1748512622768,0.57600649,108520.0,108510.0,0.54728087]
[1748512623246,0.57600649,108520.0,108510.0,0.56453967]
[1748512623466,0.57600649,108520.0,108510.0,0.56454311]
[1748512624116,0.57600649,108520.0,108510.0,0.55807026]
[1748512624343,0.57600649,108520.0,108510.0,0.56454311]
[1748512624552,0.57600649,108520.0,108510.0,0.54080932]
[1748512625406,0.57600649,108520.0,108510.0,0.55807542]
[1748512625852,0.57600649,108520.0,108510.0,0.54728411]
[1748512626067,0.57600649,108520.0,108510.0,0.54080932]
[1748512626781,0.29456649,108520.0,108510.0,0.87681624]
[1748512626996,0.57600649,108520.0,108510.0,0.87681624]
[1748512627209,0.57600649,108520.0,108510.0,0.90055673]
[1748512627655,0.57600649,108520.0,108510.0,0.88329092]
[1748512627881,0.57600649,108520.0,108510.0,0.9005557]
[1748512628091,0.57600649,108520.0,108510.0,0.88329053]
[1748512628301,0.57600649,108520.0,108510.0,0.90055531]
[1748512628512,0.57600649,108520.0,108510.0,0.87681624]
[1748512628737,0.57600649,108520.0,108510.0,0.90055532]
[1748512628948,0.57600649,108520.0,108510.0,0.87681624]
[1748512629658,0.57600649,108520.0,108510.0,0.55807362]
[1748512630113,0.57600649,108520.0,108510.0,0.57533792]
[1748512630331,0.57600649,108520.0,108510.0,0.59907633]
[1748512630550,0.57600649,108520.0,108510.0,0.60986652]
[1748512630763,0.57600649,108520.0,108510.0,0.61634063]
[1748512631416,0.57600649,108520.0,108510.0,0.61634059]
[1748512631630,0.57600649,108520.0,108510.0,0.61634027]
[1748512632521,0.57600649,108520.0,108510.0,0.61634003]
[1748512632715,0.57600649,108520.0,108510.0,0.63360343]
[1748512632954,0.57600649,108520.0,108510.0,0.23360343]
[1748512633423,0.57600649,108520.0,108510.0,0.63360341]
[1748512634076,0.57600649,108520.0,108510.0,0.63360323]
[1748512634533,0.57600649,108520.0,108510.0,0.63360309]
[1748512635182,0.57600649,108520.0,108510.0,0.60986589]
[1748512635622,0.57600649,108520.0,108510.0,0.61633971]
[1748512636093,0.57600649,108520.0,108510.0,0.63360327]
[1748512636328,0.57600649,108520.0,108510.0,1.23360327]
[1748512636984,0.57600649,108520.0,108510.0,1.63360335]
[1748512637433,0.57600649,108520.0,108510.0,1.60986589]
[1748512637655,0.57600649,108520.0,108510.0,1.61633971]
[1748512637875,0.57600649,108520.0,108510.0,1.60986589]
[1748512638962,0.57600649,108520.0,108510.0,1.62712943]
[1748512639191,0.57600649,108520.0,108510.0,1.60986589]
[1748512639681,0.57600649,108520.0,108510.0,1.63360314]
[1748512639888,0.57600649,108520.0,108510.0,1.60986589]
[1748512640161,0.57600649,108520.0,108510.0,1.63360305]
[1748512640383,0.57600649,108520.0,108510.0,1.60986589]
[1748512640610,0.57600649,108520.0,108510.0,1.62712924]
[1748512640823,0.57600649,108520.0,108510.0,1.60986589]
[1748512641468,0.57600649,108520.0,108510.0,1.61633963]
[1748512641723,0.57600649,108520.0,108510.0,1.60986589]
[1748512642361,0.57600649,108520.0,108510.0,1.61633963]
[1748512642799,0.57600649,108520.0,108510.0,1.60986589]
[1748512643244,0.57600649,108520.0,108510.0,1.62712917]
[1748512643478,0.57600649,108520.0,108510.0,1.61633962]
[1748512643695,0.57600649,108520.0,108510.0,1.6336029]
[1748512644541,0.57600649,108520.0,108510.0,1.62712917]
[1748512645010,0.57600649,108520.0,108510.0,1.60986589]
[1748512645234,0.57600649,108520.0,108510.0,1.6336029]
[1748512645891,0.57600649,108520.0,108510.0,1.63360291]
[1748512646696,0.57600649,108520.0,108510.0,1.60986589]
[1748512646905,0.57600649,108520.0,108510.0,1.63360302]
[1748512647115,0.57600649,108520.0,108510.0,1.60070302]
[1748512647583,0.57600649,108520.0,108510.0,1.61620266]
[1748512647805,0.57600649,108520.0,108510.0,1.63270266]
[1748512648268,0.57600649,108520.0,108510.0,1.6327018]
[1748512648485,0.57600649,108520.0,108510.0,1.61543929]
[1748512648693,0.57600649,108520.0,108510.0,1.63269941]
[1748512648917,0.57600649,108520.0,108510.0,1.60896589]
[1748512649171,0.57600649,108520.0,108510.0,1.63269942]
[1748512650267,0.57600649,108520.0,108510.0,1.63269924]
[1748512650529,0.57600649,108520.0,108510.0,1.63269917]
[1748512650757,0.57600649,108520.0,108510.0,1.63269751]
[1748512651198,0.57600649,108520.0,108510.0,1.60896589]
[1748512651410,0.57600649,108520.0,108510.0,1.62622499]
[1748512651634,0.57600649,108520.0,108510.0,1.60896589]
[1748512652973,0.57600649,108520.0,108510.0,1.61543794]
[1748512653188,0.57600649,108520.0,108510.0,1.60896589]
[1748512653399,0.91201341,108520.0,108510.0,1.60896589]
[1748512653639,0.91201341,108520.0,108510.0,1.61543782]
[1748512653867,0.91201341,108520.0,108510.0,1.59246589]
[1748512654072,0.91201341,108520.0,108510.0,1.60972437]
[1748512654287,0.91201341,108520.0,108510.0,1.59893782]
[1748512654500,0.91201341,108520.0,108510.0,1.60896589]
[1748512656100,0.57600649,108520.0,108510.0,1.60896589]
[1748512656311,0.57600649,108520.0,108510.0,1.61543782]
[1748512656533,0.57600649,108520.0,108510.0,1.59246589]
[1748512656789,0.57600649,108520.0,108510.0,1.59893782]
[1748512657043,0.57600649,108520.0,108510.0,1.6334548]
[1748512657307,0.57600649,108520.0,108510.0,1.65602673]
[1748512657878,0.57600649,108520.0,108510.0,1.6560264]
[1748512658397,0.57600649,108520.0,108510.0,1.64955456]
[1748512658646,0.57600649,108520.0,108510.0,1.6560264]
[1748512659237,0.57600649,108520.0,108510.0,1.65602533]
[1748512659519,0.57600649,108520.0,108510.0,1.65602428]
[1748512659976,0.57596649,108520.0,108510.0,1.65602428]
[1748512660856,0.57596649,108520.0,108510.0,1.65602391]
[1748512661072,0.57596649,108520.0,108510.0,1.63876747]
[1748512661329,0.57596649,108520.0,108510.0,1.65602391]
[1748512661550,0.57596649,108520.0,108510.0,1.65602376]
[1748512661775,0.57596649,108520.0,108510.0,1.63876747]
[1748512662002,0.91197341,108520.0,108510.0,1.65602369]
[1748512663068,0.91197341,108520.0,108510.0,1.63876747]
[1748512663316,0.57596649,108520.0,108510.0,1.6560239]
[1748512663752,0.57596649,108520.0,108510.0,1.65602405]
[1748512664616,0.91197341,108520.0,108510.0,1.63229631]
[1748512664832,0.91197341,108520.0,108510.0,1.65602467]
[1748512665048,0.57596649,108520.0,108510.0,1.65602467]
[1748512665260,0.57596649,108520.0,108510.0,1.63876768]
[1748512665477,0.57596649,108520.0,108510.0,1.65602467]
[1748512665919,0.57596649,108520.0,108510.0,1.6560247]
[1748512666128,0.57596649,108520.0,108510.0,1.62266771]
[1748512666369,0.57596649,108520.0,108510.0,1.95220323]
[1748512666572,0.57596649,108520.0,108510.0,1.95120323]
[1748512666988,0.57696649,108520.0,108510.0,1.96620323]
[1748512667213,0.57696649,108520.0,108510.0,1.95120323]
[1748512667427,0.57696649,108520.0,108510.0,1.95020323]
[1748512667673,0.57696649,108520.0,108510.0,1.96550323]
[1748512667889,0.57796649,108520.0,108510.0,1.95020323]
[1748512668774,0.57796649,108520.0,108510.0,1.96670323]
[1748512669575,0.57796649,108520.0,108510.0,1.95020323]
[1748512670263,0.57796649,108520.0,108510.0,1.96570323]
[1748512671182,0.57796649,108520.0,108510.0,1.93470323]
[1748512671923,0.57796649,108520.0,108510.0,1.95080323]
[1748512673021,0.57792649,108520.0,108510.0,1.96680323]
[1748512674342,0.57792649,108520.0,108510.0,1.96691528]
[1748512675539,0.57792649,108520.0,108510.0,1.56691528]
[1748512675758,0.29656649,108520.0,108510.0,1.56691528]
[1748512675976,0.57792649,108520.0,108510.0,1.56691528]
[1748512676199,0.57792649,108520.0,108510.0,1.63079631]
[1748512676428,0.57792649,108520.0,108510.0,1.96691528]
[1748512678002,0.57792649,108520.0,108510.0,1.63079631]
[1748512678003,0.29656649,108520.0,108510.0,1.63079631]
[1748512678229,0.57792649,108520.0,108510.0,1.56691528]
[1748512678660,0.57792649,108520.0,108510.0,1.96691528]
[1748512678882,0.57692649,108520.0,108510.0,1.96691528]
[1748512679102,0.57792649,108520.0,108510.0,1.96691528]
[1748512679566,0.57992649,108520.0,108510.0,1.96691528]
[1748512681463,0.57992649,108520.0,108510.0,1.63079631]
[1748512683052,0.57992649,108520.0,108510.0,1.62433457]
[1748512695991,0.29856649,108520.0,108510.0,1.62433457]
[1748512696239,0.57992649,108520.0,108510.0,1.62433457]
[1748512697082,0.57992649,108520.0,108510.0,1.22433457]
[1748512697292,0.57992649,108520.0,108510.0,1.20833457]
[1748512697509,0.57992649,108520.0,108510.0,1.19223457]
[1748512697939,0.59492649,108520.0,108510.0,1.19223457]
[1748512698587,0.59492649,108520.0,108510.0,1.20086695]
[1748512699217,0.59492649,108520.0,108510.0,1.20086712]
[1748512699426,0.59492649,108520.0,108510.0,1.200864]
[1748512700510,0.59492649,108520.0,108510.0,1.20086235]
[1748512700740,0.93492649,108520.0,108510.0,1.20086235]
[1748512700971,0.95002649,108520.0,108510.0,1.20086235]
[1748512701400,0.93492649,108520.0,108510.0,1.20086086]
[1748512701824,0.91992649,108520.0,108510.0,1.20086074]
[1748512702042,1.41452649,108520.0,108510.0,1.20086074]
[1748512703076,1.41452649,108520.0,108510.0,1.19223457]
[1748512703301,1.41452649,108520.0,108510.0,1.20085946]
[1748512703764,1.41452649,108520.0,108510.0,1.19223457]
[1748512703975,1.41456649,108520.0,108510.0,1.20085847]
[1748512704193,1.41456649,108520.0,108510.0,1.19223457]
[1748512704642,1.41456649,108520.0,108510.0,1.20085769]
[1748512705333,1.44546649,108520.0,108510.0,1.20085769]
[1748512706627,1.44546649,108520.0,108510.0,1.20085604]
[1748512706834,1.44546649,108520.0,108510.0,1.20085605]
[1748512707465,1.43016649,108520.0,108510.0,1.20085605]
[1748512707877,1.43016649,108520.0,108510.0,1.20085529]
[1748512708712,1.43016649,108520.0,108510.0,1.20085472]
[1748512708925,1.43016649,108520.0,108510.0,1.20085474]
[1748512709137,1.43016649,108520.0,108510.0,1.19223457]
[1748512709356,1.43016649,108520.0,108510.0,1.20085474]
[1748512709568,1.43016649,108520.0,108510.0,1.19223457]
[1748512709773,1.43016649,108520.0,108510.0,1.20085464]
[1748512710660,1.43016649,108520.0,108510.0,1.20085425]
[1748512710868,1.43016649,108520.0,108510.0,1.19223457]
[1748512711117,1.43016649,108520.0,108510.0,1.20085418]
[1748512712032,1.43016649,108520.0,108510.0,1.20085389]
[1748512712261,1.41456649,108520.0,108510.0,1.20085389]
[1748512713702,1.41456649,108520.0,108510.0,1.20085357]
[1748512714782,1.41456649,108520.0,108510.0,1.20085359]
[1748512715178,1.41456649,108520.0,108510.0,1.19223457]
[1748512717577,1.41456649,108520.0,108510.0,1.20085431]
[1748512717806,1.41456649,108520.0,108510.0,1.2173544]
[1748512718716,1.41456649,108520.0,108510.0,1.21735494]
[1748512719701,1.41456649,108520.0,108510.0,1.20873457]
[1748512719990,1.41456649,108520.0,108510.0,1.21735564]
[1748512720485,1.41456649,108520.0,108510.0,1.20873457]
[1748512720740,1.41456649,108520.0,108510.0,1.21735577]
[1748512720992,1.41456649,108520.0,108510.0,1.21735652]
[1748512721253,1.41456649,108520.0,108510.0,1.20085652]
[1748512721496,1.41456649,108520.0,108510.0,1.19223457]
[1748512721723,1.41456649,108520.0,108510.0,1.20085749]
[1748512722618,1.41456649,108520.0,108510.0,1.20085763]
[1748512723334,1.41456649,108520.0,108510.0,1.21675763]
[1748512723562,1.41456649,108520.0,108510.0,1.21675904]
[1748512724659,1.41456649,108520.0,108510.0,1.23235904]
[1748512725086,1.41456649,108520.0,108510.0,1.23235918]
[1748512725948,1.13316649,108520.0,108510.0,1.23235918]
[1748512726182,1.07520649,108520.0,108510.0,1.22373457]
[1748512728554,0.79316649,108520.0,108510.0,1.62373457]
[1748512728778,1.07516649,108520.0,108510.0,1.22373457]
[1748512730178,1.07524649,108520.0,108510.0,1.22373457]
[1748512735702,1.07516649,108520.0,108510.0,1.22373457]
[1748512736685,1.41516649,108520.0,108510.0,1.22373457]
[1748512737365,0.92092649,108520.0,108510.0,1.22373457]
[1748512738964,0.92288649,108520.0,108510.0,1.22373457]
[1748512739225,0.63856649,108520.0,108510.0,1.55985354]
[1748512739458,0.92300649,108520.0,108510.0,1.55985354]
[1748512739705,0.014,108520.0,108510.0,2.46975836]
[1748512739930,0.014,108520.0,108510.0,2.47776287]
[1748512740163,0.014,108520.0,108510.0,2.48697818]
[1748512740164,0.03242859,108520.0,108510.0,2.48697818]
[1748512740393,0.02321412,108520.0,108510.0,2.48697818]
[1748512740648,0.012,108520.0,108510.0,2.49619341]
[1748512740874,0.02121421,108520.0,108510.0,2.49619341]
[1748512741117,0.012,108520.0,108510.0,2.49919341]
[1748512741404,0.02121412,108520.0,108510.0,1.82395547]
[1748512741657,0.012,108520.0,108510.0,2.50540855]
[1748512741926,0.01,108520.0,108510.0,2.50640855]
[1748512742148,0.01,108520.0,108510.0,1.83417061]
[1748512742377,0.01,108520.0,108510.0,2.15197841]
[1748512742608,0.01,108520.0,108510.0,2.55197841]
[1748512742829,0.01,108520.0,108510.0,2.25338067]
[1748512743076,0.212727,108520.0,108510.0,1.63373908]
[1748512743293,0.03764322,108520.0,108510.0,2.49002268]
[1748512743509,0.03764322,108520.0,108510.0,2.49002276]
[1748512743692,0.03764322,108520.0,108510.0,2.49923833]
[1748512744170,0.02842859,108520.0,108510.0,2.50845373]
[1748512744394,0.02842859,108520.0,108510.0,2.51766921]
[1748512744899,0.01,108520.0,108510.0,2.22828661]
[1748512745150,0.01,108520.0,108510.0,2.53488886]
[1748512745381,0.01,108520.0,108510.0,2.23629112]
[1748512745574,0.01,108520.0,108510.0,2.87488886]
[1748512746077,0.01,108520.0,108510.0,2.66734507]
[1748512746541,0.19429782,108520.0,108510.0,2.24910783]
[1748512746781,0.21272666,108520.0,108510.0,1.62573457]
[1748512747022,0.21272666,108520.0,108510.0,2.19048937]
[1748512747023,0.03764356,108520.0,108510.0,2.19048937]
[1748512747256,0.02842884,108520.0,108510.0,1.90040937]
[1748512747482,0.02842884,108520.0,108510.0,2.21825599]
[1748512747483,0.04685819,108520.0,108510.0,2.21825599]
[1748512747714,0.0376433,108520.0,108510.0,2.52606904]
[1748512747933,0.0376433,108520.0,108510.0,2.23668653]
[1748512748155,0.0376433,108520.0,108510.0,2.52606904]
[1748512748380,0.0376433,108520.0,108510.0,2.53528427]
[1748512748381,0.02842867,108520.0,108510.0,2.53528427]
[1748512748606,0.02842867,108520.0,108510.0,2.53528367]
[1748512748826,0.02842859,108520.0,108510.0,2.53528367]
[1748512749555,0.01921421,108520.0,108510.0,2.53528367]
[1748512750000,0.02842859,108520.0,108510.0,2.52606853]
[1748512750451,0.0284285,108520.0,108510.0,2.52606853]
[1748512750930,0.01921421,108520.0,108510.0,2.53528367]
[1748512751370,0.01921412,108520.0,108510.0,2.53528367]
[1748512751592,0.02842841,108520.0,108510.0,2.22747079]
[1748512751815,0.01921412,108520.0,108510.0,2.52606853]
[1748512752037,0.01921412,108520.0,108510.0,2.53528367]
[1748512752264,0.01921412,108520.0,108510.0,2.23668593]
[1748512752265,0.02842841,108520.0,108510.0,2.23668593]
[1748512752483,0.02842841,108520.0,108510.0,2.53528367]
[1748512752932,0.02842841,108520.0,108510.0,2.45701196]
[1748512753158,0.03764287,108520.0,108510.0,2.15841422]
[1748512753348,0.02842841,108520.0,108510.0,2.4662271]
[1748512754287,0.01921412,108520.0,108510.0,2.4662271]
[1748512754518,0.03764279,108520.0,108510.0,2.16762936]
[1748512754760,0.03764279,108520.0,108510.0,2.4662271]
[1748512755425,0.03764271,108520.0,108510.0,2.4662271]
[1748512755923,0.04685726,108520.0,108510.0,2.4662271]
[1748512756137,0.03764271,108520.0,108510.0,2.4662271]
[1748512756351,0.04685726,108520.0,108510.0,2.45701196]
[1748512756570,0.04685726,108520.0,108510.0,2.4662271]
[1748512756778,0.04685726,108520.0,108510.0,2.16762936]
[1748512757502,0.04685726,108520.0,108510.0,2.15103891]
[1748512757723,0.05607198,108520.0,108510.0,2.15103891]
[1748512757943,0.04685726,108520.0,108510.0,2.15103891]
[1748512758167,0.05607198,108520.0,108510.0,2.15103891]
[1748512758382,0.04685726,108520.0,108510.0,2.15103891]
[1748512758623,0.05607189,108520.0,108510.0,2.54879891]
[1748512759361,0.05607189,108520.0,108510.0,2.55801405]
[1748512759579,0.05607189,108520.0,108510.0,2.54879891]
[1748512759801,0.05607266,108520.0,108510.0,2.53958368]
[1748512760017,0.05607266,108520.0,108510.0,2.54879899]
[1748512760223,0.05607266,108520.0,108510.0,2.17561422]
[1748512760436,0.05607266,108520.0,108510.0,2.55793422]
[1748512761333,0.23115627,108520.0,108510.0,2.54859899]
[1748512761569,0.22194189,108520.0,108510.0,2.54859899]
[1748512762236,0.22194189,108520.0,108510.0,1.954438]
[1748512762457,0.21272734,108520.0,108510.0,2.336478]
[1748512763214,0.21272734,108520.0,108510.0,1.954438]
[1748512763505,0.21272734,108520.0,108510.0,2.336398]
[1748512764058,0.30378129,108520.0,108510.0,1.541078]
[1748512764337,0.67458129,108520.0,108510.0,1.13377964]
[1748512764572,0.70223229,108520.0,108510.0,1.13378158]
[1748512765044,0.70223229,108520.0,108510.0,1.1337819]
[1748512765500,0.70223229,108520.0,108510.0,1.125178]
[1748512765712,0.70223229,108520.0,108510.0,1.13378126]
[1748512766191,0.70223229,108520.0,108510.0,1.13278126]
[1748512766406,0.70223229,108520.0,108510.0,1.124178]
[1748512766626,0.70423229,108520.0,108510.0,1.124178]